Cogmind - Beta 13 @@@ ROGUE MODE // 2024.04.06 @ 19:35:44 Player: Ghosty Result: Destroyed by G-34 Mercenary with Small Laser Performance ------------- Evolutions (0) 0 Regions Visited (1) 200 Robots Destroyed (7) 35 Value Destroyed (153) 153 Prototype IDs (0) 0 Alien Tech Used (0) 0 Bonus (0) 0 TOTAL SCORE: 388 Bonus ------- None Cogmind --------- Core Integrity 0/250 Matter 265/300 Energy 248/250 System Corruption 19% Temperature Cool (77) Movement Walking (260) Ox2 Location -10/Materials Parts ------- > --- POWER (1) -------- Ion Engine > --- PROPULSION (2) --- Aluminum Leg > --- UTILITY (2) ------ Large Storage Unit Structural Scanner > --- WEAPON (2) ------- Grenade Launcher > --- INVENTORY (15) --- Light Ion Engine Light Treads Aluminum Leg Aluminum Leg Large Battery (200) Improved Terrain Scanner Improved Terrain Scanner Peak State ------------ > --- POWER ------------ Ion Engine > --- PROPULSION ------- Aluminum Leg Aluminum Leg > --- UTILITY ---------- Small Storage Unit Improved Terrain Scanner > --- WEAPON ----------- Light Assault Rifle Light Assault Rifle > --- INVENTORY -------- Light Ion Engine Light Treads Light Treads Wheel Compact Wheel Improved Terrain Scanner Small Laser Mining Laser [Rating: 10] Favorites ----------- Power Ion Engine Engine Ion Engine Propulsion Light Treads Treads Light Treads Leg Aluminum Leg Utility Small Storage Unit Device Seismic Detector Storage Small Storage Unit Weapon Mining Laser Energy Gun Small Laser Ballistic Gun Light Assault Rifle Launcher Grenade Launcher Special Weapon Mining Laser Build | -11 -10 ------- Run | Yrd Mat Slots Evolved . | . . Power . | . . Propulsion . | . . Utility . | . . Weapon . | . . Parts Attached 24 | 12 12 Power 3 | 2 1 Engine 3 | 2 1 Core . | . . Reactor . | . . Propulsion 6 | 4 2 Treads 2 | 2 . Leg 4 | 2 2 Wheel . | . . Hover . | . . Flight . | . . Utility 7 | 3 4 Device 5 | 2 3 Storage 2 | 1 1 Processor . | . . Hackware . | . . Protection . | . . Artifact . | . . Weapon 8 | 3 5 Energy Gun 1 | 1 . Energy Cannon . | . . Ballistic Gun 4 | 2 2 Ballistic Cannon . | . . Launcher 1 | . 1 Special Weapon 2 | . 2 Impact Weapon . | . . Slashing Weapon . | . . Piercing Weapon . | . . Special Melee Weapon . | . . Unidentified Prototypes . | . . Parts Lost 7 | . 7 Power 1 | . 1 Propulsion 1 | . 1 Utility 1 | . 1 Weapon 4 | . 4 Highest Loss Streak 7 | . 7 To Critical Strikes . | . . Average Slot Usage (%) 97 | . 97 Engine 13 | . 13 Treads 25 | . 25 Leg 1 | . 1 Device 13 | . 13 Storage 14 | . 14 Special Weapon 25 | . 25 Naked Turns . | . . Heaviest Build 29 | 13 29 Greatest Support 40 | 40 40 Greatest Overweight (x) 3 | 3 2 Average Overweight (x) . | . . Largest Inventory Capacity 15 | 8 15 Average Capacity 8 | 7 8 Most Carried 8 | 8 7 Average Carried 6 | 5 6 Final Capacity 15 | 8 15 Final Carried 7 | 7 7 Class Distribution -------------------- 100% | Mutant Dominant Class ---------------- Mutant | -10/Materials Resources | -11 -10 ----------- Run | Yrd Mat Matter Collected 421 | 255 166 Remotely . | . . Salvage Created 189 | 86 103 Parts 17 | 10 7 Haulers Intercepted . | . . Recyclers Shooed 1 | 1 . Parts Field Recycled . | . . Retrieved Matter . | . . Parts Self-Destructed . | . . Prevented . | . . Kills | -11 -10 ------- Run | Yrd Mat Combat Hostiles Destroyed 3 | . 3 Melee 1 | . 1 Guns 2 | . 2 Classes Destroyed 2 | 1 1 Tunneler 4 | 4 . Grunt 3 | . 3 Best Kill Streak 2 | 1 2 Combat Bots Only 2 | . 2 Max Kills in Single Turn 1 | 1 1 Gunslinging . | . . Exploded . | . . Melee 1 | . 1 Uniques/NPCs Destroyed . | . . Combat | -11 -10 -------- Run | Yrd Mat Hostile Shots Fired 55 | . 55 Missed 12 | . 12 Damage Taken 1244 | . 1244 Core 254 | . 254 Absorbed by Shields . | . . Core Remaining (%) 100 | 100 . Volleys Fired 29 | 12 17 Largest 2 | 2 2 Hottest 200 | 40 200 Shots Fired 56 | 24 32 Gun 42 | 24 18 Cannon . | . . Launcher 1 | . 1 Special 13 | . 13 Kinetic 42 | 24 18 Thermal 13 | . 13 Explosive 1 | . 1 Electromagnetic . | . . Robot Hit Streak 7 | 6 7 Robot Miss Streak 2 | 2 2 Penetration Max . | . . Secondary Targets 2 | . 2 Max Gunslinging Chain 1 | . 1 Shots Hit Robots 32 | 18 14 Core Hits 20 | 8 12 Critical Kills . | . . Critical Parts Destroyed . | . . Critical Strikes . | . . Melee Attacks . | . . Impact . | . . Slashing . | . . Piercing . | . . Sneak Attacks . | . . Combat Hostiles . | . . Follow-up Attacks . | . . Damage Inflicted 272 | 147 125 Guns 253 | 147 106 Cannons . | . . Explosions . | . . Melee . | . . Ramming 19 | . 19 Kinetic 253 | 147 106 Thermal . | . . Explosive . | . . Electromagnetic . | . . Impact . | . . Slashing . | . . Piercing . | . . Highest Corruption 19 | . 19 Average Corruption 18 | . 18 Corruption Purged . | . . Corruption Blocked . | . . Effects 16 | . 16 Message Errors 5 | . 5 Matter Fused 2 | . 2 Heat Flow Errors 2 | . 2 Energy Discharges 1 | . 1 Data Loss (minor) 4 | . 4 Misfires 1 | . 1 Weapon Failures 1 | . 1 Overload Shots . | . . Overflow Damage . | . . Projectiles . | . . Explosions . | . . Melee . | . . Knockbacks . | . . Impact . | . . Kinetic . | . . Secondary . | . . Self-Inflicted Damage 39 | . 39 Shots 1 | . 1 Rammed . | . . Targets Rammed 10 | . 10 Kicked 10 | . 10 Crushed . | . . Highest Temperature 269 | . 269 Average Temperature 67 | . 67 Received Heat Transfer 336 | . 336 Siege Activations . | . . Robots Corrupted . | . . Combat Hostiles . | . . Parts Fried . | . . Impact Corruptions . | . . Robots Melted . | . . Combat Hostiles . | . . Parts Melted . | . . Heat Transferred . | . . Parts Sabotaged . | . . Parts Stolen . | . . Parts Stripped . | . . Power Chain Reactions . | . . Alert | -11 -10 ------- Run | Yrd Mat Peak Influence 61 | 20 61 Initial 13 | . 13 Average 5 | 8 5 Maximum Alert Level . | . . Low Security (%) 100 | 100 100 Level 1 . | . . Level 2 . | . . Level 3 . | . . Level 4 . | . . Level 5 . | . . High Security . | . . Max Security . | . . Squads Dispatched 1 | . 1 Investigation . | . . Extermination . | . . Reinforcement 1 | . 1 Assault . | . . Garrison . | . . Intercept . | . . Searches Triggered . | . . Construction Impeded . | . . Haulers Reinforced . | . . Active Scanning Responses . | . . Cargo Convoy Interrupts . | . . Stealth | -11 -10 --------- Run | Yrd Mat Distress Signals . | . . Communications Jammed . | . . Distress Signals . | . . Times Spotted 6 | . 6 Peak Tracking Total 4 | . 4 Tactical Retreats . | . . Traps | -11 -10 ------- Run | Yrd Mat Traps Triggered 1 | . 1 Indirectly . | . . Trap Hack Attempts . | . . Triggered . | . . Disarmed . | . . Reprogrammed . | . . Reused . | . . Traps Extracted . | . . Installed . | . . Triggered . | . . Machines | -11 -10 ---------- Run | Yrd Mat Machines Disabled 1 | . 1 Max in Single Turn 1 | . 1 Machines Repaired . | . . Machines Dismantled . | . . Machines Sabotaged . | . . Overloaded Fab Kills . | . . Hacking | -11 -10 --------- Run | Yrd Mat Machines Accessed 1 | . 1 Terminals 1 | . 1 Fabricators . | . . Repair Stations . | . . Recycling Units . | . . Scanalyzers . | . . Garrison Access . | . . Total Hacks 1 | . 1 Successful . | . . Failed 1 | . 1 Catastrophic . | . . Database Lockouts . | . . Manual 1 | . 1 Terminals 1 | . 1 Fabricators . | . . Repair Stations . | . . Recycling Units . | . . Scanalyzers . | . . Garrison Access . | . . Terminal Hacks . | . . Fabricator Hacks . | . . Repair Station Hacks . | . . Recycling Unit Hacks . | . . Scanalyzer . | . . Garrison Access Hacks . | . . Unauthorized Hacks . | . . Terminals . | . . Fabricators . | . . Repair Stations . | . . Recycling Units . | . . Scanalyzers . | . . Garrison Access . | . . Data Cores Recovered . | . . Used . | . . Hacking Detections 1 | . 1 Full Trace Events . | . . Feedback Events . | . . Feedback Blocked . | . . Robot Schematics Acquired . | . . Robots Built . | . . Authchips . | . . Time . | . . Total Robot Build Rating . | . . Part Schematics Acquired . | . . Parts Built . | . . Authchips . | . . Time . | . . Total Part Build Rating . | . . Parts Repaired . | . . Time . | . . Parts Recycled . | . . Recycled Matter . | . . Retrieved Matter . | . . Retrieved Components . | . . Parts Scanalyzed . | . . Part Schematics Acquired . | . . Parts Damaged . | . . Bothacking | -11 -10 ------------ Run | Yrd Mat Used RIF Installer . | . . Robots Hacked . | . . Non-combat . | . . Combat . | . . Robot Hacks Applied . | . . Relay Couplers Released . | . . Fabnet Peak Effective % . | . . Robots Rewired . | . . Allies Hacked . | . . Hacks Repelled . | . . Allies | -11 -10 -------- Run | Yrd Mat Total Allies . | . . Largest Group . | . . Highest-Rated Group . | . . Highest-Rated Ally . | . . Total Orders . | . . Ally Attacks . | . . Total Damage . | . . Kills . | . . Allies Corrupted . | . . Allies Melted . | . . Intel | -11 -10 ------- Run | Yrd Mat Robot Analysis Total . | . . Derelict Logs Recovered . | . . Drone Launches . | . . Drone Recoveries . | . . Exploration | -11 -10 ------------- Run | Yrd Mat Turns Passed 3302 | 257 3045 Spaces Moved 289 | 141 148 Core 20 | 20 . Treads 72 | 42 30 Legs 197 | 79 118 Wheels . | . . Hover . | . . Flight . | . . Fastest Speed 50 | 50 120 Average Speed 159 | 134 183 Slowest Speed 260 | 200 260 Overloaded Moves . | . . Propulsion Burnouts . | . . Robots Hopped . | . . Cave-ins Triggered 2 | . 2 Exploration Rate (%) 12 | 6 19 Regions Visited 1 Branch Regions . Pre-discovered Areas . | . . Known Exits Taken . | . . Unknown Exits Taken 1 | 1 . Scrap Searched . | . . Spaces Dug 12 | . 12 Terrain Destroyed 22 | . 22 Melee . | . . Projectile 12 | . 12 AOE 10 | . 10 Terrain Rammed . | . . Walls Destroyed . | . . Machines Disabled . | . . Actions | -11 -10 --------- Run | Yrd Mat Total 3052 | 187 2865 Wait 2674 | 4 2670 Move 288 | 140 148 Hop . | . . Pick Up 23 | 16 7 Fast Attach 1 | 1 . Attach 12 | 6 6 Detach . | . . Swap 11 | 5 6 Drop 4 | 3 1 Fire 29 | 12 17 Melee . | . . Ram . | . . Kick 10 | . 10 Crush . | . . Escape Stasis . | . . Rewire . | . . Trap . | . . Miscellaneous . | . . Route ------- -11/Scrapyard -10/Materials (discovered 1 exit: [*Min]) History --------- Turn | Location | Event 48 | -11/Scrapyard | Discovered new exit (range 14) 258 | -11/Scrapyard | Entered Materials 308 | -10/Materials | Build established: Mutant 3019 | -10/Materials | Crushed by falling debris 3019 | -10/Materials | System corruption reached 10% 3052 | -10/Materials | Crushed by falling debris 3052 | -10/Materials | Core integrity fell below 50% 3087 | -10/Materials | Lost 7 parts (1p1n1u4w) 3134 | -10/Materials | Core integrity fell below 20% 3267 | -10/Materials | Discovered new exit (range 16) 3303 | -10/Materials | Destroyed by G-34 Mercenary with Small Laser Last Messages --------------- 03145_ Triggered Blade Trap. 03145_ Massive razor-sharp blades shoot up from within the floor. 03145_ Aluminum Leg severed. 03149_ U-05 Engineer builds a Wall. 03150_ V:8KVMQOUM6= DSRRGRQ5 03150_ U-05 Engineer lays Concrete. 03156_ Acquired Lrg. Storage Unit. 03167_ System corrupted: Component data lost. 03172_ Dropped Sml. Storage Unit. 03187_ System corrupted: Component data lost. 03203_ Acquired Lrg. Battery. 03207_ Connecting with Terminal... 03207_ Current location identified: Materials 03211_ System corrupted: Component data lost. 03228_ :MLLPXOQWK>RWW6ADEKGOS4 03239_ R-06 Scavenger collects Sml. Storage Unit. 03248_ System corrupted: Energy discharge (-65). 03267_ EXIT=FOUND 03274_ System corrupted: Heat flow error (+288). 03293_ System corrupted: Heat flow error (+242). Map ----- +----------------------------------------------------+ | | | | | | | | | | | | | | | | | | | | | | | | | ??????????????????????????????????? | | ??????????????????????????????????? | | ??????????????????????????????????? | | ??????????????????????????????????? | | ??????????????????????????????????? | | ??????????????????????????????????? | | ????????#######???????????????????? | | ???????#########??????????????????? | | ??????####"""### ?????????????????? | | ??????###"!!!"## ?????????????????? | | ??????##"" ""# ?????????????????? | | ??????## # ?????????????????? | | ??????## < # ?????????????????? | | ??????## @ # ?????????????????? | | ??????## # ?????????????????? | | ?######## ## ? ##????????? | | ?######### #######+#####????????? | | ?## # g##### ????????? | | ?## + g ????????? | | ?## """ # ????????? | | ?## ""? # ????????? | | ?## ??? # """ """ """?????????? | | ???????? # """ """ ""??????????? | | ?######### """ """ """ # ?????? | | ?######### # ?????? | | ? # u + ?????? | | ?? """ # ###### # ?????? | | ? """"" # ########### # ?????? | | # """"" + ##???###### ?????????? | | # """"" # ##???????????????????? | | # """ # #########????????????? | | # # #########????????????? | | # # # T !!##????????????? | | ########## # !! # ????????????? | | ########## # !! # ????????????? | | ????###### # ! # ????????????? | | ????###! # # ????????????? | | ????##! # """ # ????????????? | +----------------------------------------------------+ Best States ------------- Heat Dissipation 25 Energy Generation 10 Energy Capacity 250 Matter Stores 300 Matter Capacity 300 Sight Range 16 Terrain Scan Range 16 Terrain Scan Density 10 Evasion (%) 55 Recoil Reduction 2 Item Schematics ----------------- None Robot Schematics ------------------ None Fabricated ------------ Nothing Alien Tech Used ----------------- None Achievements -------------- Maybe Next Time I'll Detach My Launcher Challenges ------------ None Game ------ Seed WeaponsAlloyWheel Manual? 0 Play Time 00:11:10 Cumulative 2.5 hours Start 2024.04.06 @ 19:23:44 End 2024.04.06 @ 19:35:44 Sessions 1 Manual Loads 0 Difficulty Rogue Special Mode None Game No. 4 Rogue 3 Adventurer 0 Explorer 1 Win Type - Total 0 Types 0/0/0/0/0/0/0/0/0 Lore% 0 Gallery% 6 Achievement% 6 Wizard Run 0 Options --------- Layout 0 ASCII 0 Keyboard 0 Movement Mouse Keybinds 0 Fullscreen 2 Font 24/Crisp Map View 38x25 Zoom Use 100% Tactical HUD 1 Map Filters NONE Filters NONE Steam 1 RUN: f3400039-8be0-48af-8a70-441f220c8b17